fUST/lending_fUST_20250208
["ID","MTS","AMOUNT","RATE_DAILY","PERIOD"]
[352271510,1739023833651,-500.0,0.00010958,2]
[352271512,1739023833660,-500.0,0.00010958,2]
[352271514,1739023833669,-500.0,0.00010958,2]
[352271516,1739023833679,-500.0,0.00010958,2]
[352271518,1739023833688,-500.0,0.00010958,2]
[352271520,1739023833698,-516.45699356,0.00010958,2]
[352271522,1739023833707,-500.0,0.00010958,2]
[352271524,1739023833717,-500.0,0.00010958,2]
[352271526,1739023833726,-500.0,0.00010958,2]
[352271528,1739023833735,-500.0,0.00010958,2]
[352271530,1739023833744,-500.0,0.00010958,2]
[352271532,1739023833754,-1124.23,0.00010958,2]
[352271535,1739023833764,-500.0,0.00010958,2]
[352271537,1739023833773,-500.0,0.00010958,2]
[352271539,1739023833782,-500.0,0.00010958,2]
[352271541,1739023833791,-500.0,0.00010958,2]
[352271543,1739023833800,-243.74158017,0.00010958,2]
[352271545,1739023833809,-500.0,0.00010958,2]
[352271547,1739023833819,-500.0,0.00010958,2]
[352271549,1739023833828,-500.0,0.00010958,2]
[352271551,1739023833837,-526.53405721,0.00010958,2]
[352271553,1739023833846,-766.56,0.00010958,2]
[352271555,1739023833856,-700.17,0.00010958,2]
[352271557,1739023833865,-500.0,0.00010958,2]
[352271559,1739023833874,-501.37526044,0.00010958,2]
[352271561,1739023833884,-500.0,0.00010958,2]
[352271563,1739023833895,-500.0,0.00010958,2]
[352271565,1739023833907,-500.0,0.00010958,2]
[352271567,1739023833916,-500.0,0.00010958,2]
[352271569,1739023833926,-500.0,0.00010958,2]
[352271571,1739023833936,-586.46444235,0.00010958,2]
[352271573,1739023833945,-155.55697632,0.00010958,2]
[352271575,1739023833955,-500.0,0.00010958,2]
[352271577,1739023833964,-500.0,0.00010958,2]
[352271579,1739023833974,-500.0,0.00010958,2]
[352271581,1739023833983,-733.1,0.00010958,2]
[352271583,1739023833992,-500.0,0.00010958,2]
[352271585,1739023834003,-500.0,0.00010958,2]
[352271588,1739023834023,-500.0,0.00010958,2]
[352271590,1739023834034,-501.26461619,0.00010958,2]
[352271592,1739023834044,-500.0,0.00010958,2]
[352271594,1739023834054,-500.0,0.00010958,2]
[352271596,1739023834064,-500.0,0.00010958,2]
[352271598,1739023834073,-506.90742783,0.00010958,2]
[352271601,1739023834083,-500.0,0.00010958,2]
[352271603,1739023834095,-1739.71,0.00010958,2]
[352271605,1739023834105,-500.0,0.00010958,2]
[352271607,1739023834115,-500.0,0.00010958,2]
[352271609,1739023834125,-500.0,0.00010958,2]
[352271611,1739023834135,-500.0,0.00010958,2]
[352271613,1739023834146,-500.82717175,0.00010958,2]
[352271615,1739023834156,-444.53720727,0.00010958,2]
[352271617,1739023834166,-500.0,0.00010958,2]
[352271619,1739023834176,-3208.72,0.00010958,2]
[352271621,1739023834186,-299.09533403,0.00010958,2]
[352271624,1739023834202,-15889.49466597,0.00010958,2]
[352271626,1739023834212,-500.0,0.00010958,2]
[352271628,1739023834223,-500.0,0.00010958,2]
[352271630,1739023834233,-1490.91,0.00010958,2]
[352271632,1739023834243,-500.0,0.00010958,2]
[352271634,1739023834253,-1174.19,0.00010958,2]
[352271636,1739023834263,-500.0,0.00010958,2]
[352271638,1739023834273,-1625.89,0.00010958,2]
[352271640,1739023834283,-500.0,0.00010958,2]
[352271642,1739023834295,-275.46039503,0.00010958,2]
[352271644,1739023834305,-500.0,0.00010958,2]
[352271646,1739023834316,-1482.63,0.00010958,2]
[352271648,1739023834326,-500.0,0.00010958,2]
[352271650,1739023834336,-500.0,0.00010958,2]
[352271652,1739023834346,-1047.27,0.00010958,2]
[352271654,1739023834357,-500.0,0.00010958,2]
[352271656,1739023834367,-500.74878325,0.00010958,2]
[352271658,1739023834378,-500.0,0.00010958,2]
[352271661,1739023834390,-3147.44,0.00010958,2]
[352271663,1739023834400,-976.87,0.00010958,2]
[352271665,1739023834411,-509.97871439,0.00010958,2]
[352271667,1739023834420,-500.0,0.00010958,2]
[352271669,1739023834430,-500.0,0.00010958,2]
[352271671,1739023834440,-4615.46,0.00010958,2]
[352271673,1739023834450,-500.0,0.00010958,2]
[352271675,1739023834460,-500.0,0.00010958,2]
[352271677,1739023834470,-500.0,0.00010958,2]
[352271679,1739023834480,-500.0,0.00010958,2]
[352271681,1739023834490,-500.0,0.00010958,2]
[352271683,1739023834500,-574.03,0.00010958,2]
[352271685,1739023834510,-500.0,0.00010958,2]
[352271687,1739023834520,-500.0,0.00010958,2]
[352271689,1739023834531,-1280.51,0.00010958,2]
[352271691,1739023834541,-500.0,0.00010958,2]
[352271693,1739023834551,-500.0,0.00010958,2]
[352271695,1739023834560,-500.0,0.00010958,2]
[352271697,1739023834570,-500.0,0.00010958,2]
[352271699,1739023834580,-503.10080961,0.00010958,2]
[352271702,1739023834590,-500.0,0.00010958,2]
[352271704,1739023834599,-500.0,0.00010958,2]
[352271706,1739023834609,-1464.14,0.00010958,2]
[352271708,1739023834618,-500.0,0.00010958,2]
[352271710,1739023834627,-537.33,0.00010958,2]
[352271712,1739023834638,-500.0,0.00010958,2]
[352271714,1739023834648,-610.07,0.00010958,2]
[352271716,1739023834657,-5430.26,0.00010958,2]
[352271718,1739023834667,-500.0,0.00010958,2]
[352271720,1739023834677,-46373.76,0.00010958,2]
[352271722,1739023834686,-4363.49,0.00010958,2]
[352271724,1739023834696,-500.0,0.00010958,2]
[352271726,1739023834705,-424.0897753,0.00010958,2]
[352271728,1739023834715,-15922.79,0.00010958,2]
[352271730,1739023834724,-500.0,0.00010958,2]
[352271732,1739023834733,-500.0,0.00010958,2]
[352271734,1739023834743,-2135.78,0.00010958,2]
[352271736,1739023834752,-500.0,0.00010958,2]
[352271738,1739023834761,-500.0,0.00010958,2]
[352271740,1739023834771,-1962.13,0.00010958,2]
[352271742,1739023834780,-500.0,0.00010958,2]
[352271744,1739023834790,-1504.34,0.00010958,2]
[352271746,1739023834799,-500.0,0.00010958,2]
[352271748,1739023834809,-232.82944498,0.00010958,2]
[352271750,1739023834818,-623.76,0.00010958,2]
[352271752,1739023834828,-500.0,0.00010958,2]
[352271754,1739023834837,-500.0,0.00010958,2]
[352271756,1739023834846,-1055.43,0.00010958,2]
[352271758,1739023834856,-1702.95,0.00010958,2]
[352271760,1739023834866,-500.0,0.00010958,2]
[352271762,1739023834875,-500.0,0.00010958,2]
[352271764,1739023834885,-500.0,0.00010958,2]
[352271766,1739023834895,-500.0,0.00010958,2]
[352271768,1739023834905,-500.0,0.00010958,2]
[352271770,1739023834914,-553.76790137,0.00010958,2]
[352271772,1739023834924,-776.18,0.00010958,2]
[352271774,1739023834933,-527.87,0.00010958,2]
[352271776,1739023834942,-500.0,0.00010958,2]
[352271778,1739023834951,-500.0,0.00010958,2]
[352271780,1739023834961,-500.0,0.00010958,2]
[352271782,1739023834970,-500.0,0.00010958,2]
[352271785,1739023834980,-500.0,0.00010958,2]
[352271787,1739023835167,-500.0,0.00010958,2]
[352271788,1739023835177,-500.0,0.00010958,2]
[352271790,1739023835188,-199.30342082,0.00010958,2]
[352271792,1739023835197,-1803.96,0.00010958,2]
[352271794,1739023835207,-500.0,0.00010958,2]
[352271796,1739023835218,-1327.61,0.00010958,2]
[352271798,1739023835227,-500.0,0.00010958,2]
[352271800,1739023835236,-500.0,0.00010958,2]
[352271802,1739023835245,-500.0,0.00010958,2]
[352271804,1739023835255,-508.1595289,0.00010958,2]
[352271806,1739023835264,-500.0,0.00010958,2]
[352271808,1739023835273,-500.0,0.00010958,2]
[352271810,1739023835282,-500.0,0.00010958,2]
[352271812,1739023835292,-500.0,0.00010958,2]
[352271814,1739023835301,-1765.06,0.00010958,2]
[352271816,1739023835311,-500.0,0.00010958,2]
[352271818,1739023835320,-517.53111765,0.00010958,2]
[352271820,1739023835329,-500.0,0.00010958,2]
[352271822,1739023835339,-596.08398438,0.00010958,2]
[352271824,1739023835349,-500.0,0.00010958,2]
[352271826,1739023835358,-500.0,0.00010958,2]
[352271828,1739023835367,-500.0,0.00010958,2]
[352271830,1739023835376,-500.0,0.00010958,2]
[352271832,1739023835386,-500.0,0.00010958,2]
[352271834,1739023835399,-500.0,0.00010958,2]
[352271836,1739023835408,-500.0,0.00010958,2]
[352271838,1739023835417,-500.0,0.00010958,2]
[352271840,1739023835426,-500.0,0.00010958,2]
[352271842,1739023835435,-500.0,0.00010958,2]
[352271844,1739023835445,-500.0,0.00010958,2]
[352271846,1739023835454,-500.0,0.00010958,2]
[352271848,1739023835463,-503.41528639,0.00010958,2]
[352271850,1739023835472,-500.0,0.00010958,2]
[352271852,1739023835481,-500.0,0.00010958,2]
[352271854,1739023835490,-8699.61,0.00010958,2]
[352271856,1739023835499,-500.0,0.00010958,2]
[352271858,1739023835509,-500.0,0.00010958,2]
[352271860,1739023835518,-500.0,0.00010958,2]
[352271862,1739023835527,-500.0,0.00010958,2]
[352271864,1739023835537,-262.21998038,0.00010958,2]
[352271866,1739023835546,-500.0,0.00010958,2]
[352271868,1739023835555,-500.0,0.00010958,2]
[352271870,1739023835564,-500.0,0.00010958,2]
[352271872,1739023835574,-984.54,0.00010958,2]
[352271874,1739023835583,-3503.91,0.00010958,2]
[352271876,1739023835592,-500.0,0.00010958,2]
[352271878,1739023835602,-500.0,0.00010958,2]
[352271880,1739023835611,-1832.65,0.00010958,2]
[352271882,1739023835620,-193.38656449,0.00010958,2]
[352271884,1739023835630,-500.0,0.00010958,2]
[352271887,1739023835645,-500.0,0.00010958,2]
[352271888,1739023835655,-3451.25,0.00010958,2]
[352271890,1739023835664,-500.0,0.00010958,2]
[352271892,1739023835674,-501.14547502,0.00010958,2]
[352271894,1739023835684,-500.0,0.00010958,2]
[352271897,1739023835694,-500.0,0.00010958,2]
[352271898,1739023835703,-4186.32,0.00010958,2]
[352271900,1739023835712,-1409.96,0.00010958,2]
[352271902,1739023835722,-500.0,0.00010958,2]
[352271905,1739023835733,-500.0,0.00010958,2]
[352271907,1739023835743,-577.599956,0.00010958,2]
[352271909,1739023835752,-1444.4,0.00010958,2]
[352271911,1739023835761,-768.81,0.00010958,2]
[352271913,1739023835771,-500.0,0.00010958,2]
[352271915,1739023835780,-500.0,0.00010958,2]
[352271917,1739023835789,-474.45704257,0.00010958,2]
[352271918,1739023835799,-500.0,0.00010958,2]
[352271920,1739023835808,-500.0,0.00010958,2]
[352271922,1739023835818,-500.0,0.00010958,2]
[352271924,1739023835829,-506.19487016,0.00010958,2]
[352271926,1739023835838,-500.0,0.00010958,2]
[352271929,1739023835848,-784.31,0.00010958,2]
[352271931,1739023835857,-500.0,0.00010958,2]
[352271932,1739023835866,-872.97,0.00010958,2]
[352271935,1739023835876,-1610.78,0.00010958,2]
[352271936,1739023835885,-536.54576892,0.00010958,2]
[352271938,1739023835899,-500.0,0.00010958,2]
[352271941,1739023835909,-500.0,0.00010958,2]
[352271943,1739023835918,-500.0,0.00010958,2]
[352271945,1739023835928,-500.0,0.00010958,2]
[352271947,1739023835937,-1214.04,0.00010958,2]
[352271948,1739023835946,-500.0,0.00010958,2]
[352271950,1739023835955,-500.0,0.00010958,2]
[352271952,1739023835965,-500.0,0.00010958,2]
[352271954,1739023835974,-500.0,0.00010958,2]
[352271956,1739023835983,-500.0,0.00010958,2]
[352271958,1739023835992,-389.98335779,0.00010958,2]
[352271961,1739023836002,-500.0,0.00010958,2]
[352271963,1739023836012,-502.58504685,0.00010958,2]
[352271964,1739023836023,-500.0,0.00010958,2]
[352271966,1739023836032,-501.69738265,0.00010958,2]
[352271969,1739023836042,-629.89,0.00010958,2]
[352271970,1739023836051,-641.27,0.00010958,2]
[352271972,1739023836061,-500.0,0.00010958,2]
[352271975,1739023836071,-500.0,0.00010958,2]
[352271976,1739023836080,-500.0,0.00010958,2]
[352271979,1739023836090,-1058.58,0.00010958,2]
[352271980,1739023836099,-500.0,0.00010958,2]
[352271982,1739023836108,-249.12,0.00010959,2]
[352271984,1739023836118,-500.0,0.00010973,2]
[352271987,1739023836129,-500.0,0.00010973,2]
[352271989,1739023836141,-500.0,0.00010973,2]
[352271991,1739023836150,-13088.49883344,0.00011023,2]
[352271993,1739023836160,-192.93670513,0.00011094,2]
[352271995,1739023836169,-500.0,0.00011094,2]
[352271997,1739023836179,-500.0,0.00011094,2]
[352271999,1739023836189,-627.87612294,0.00011094,2]
[352272001,1739023836198,-500.0,0.00011094,2]
[352272003,1739023836208,-500.0,0.00011095,2]
[352272005,1739023836217,-500.0,0.00011095,2]
[352272007,1739023836226,-500.0,0.00011095,2]
[352272009,1739023836235,-525.72,0.00011095,2]
[352272011,1739023836244,-155.93508399,0.00011095,2]
[352272013,1739023836254,-500.0,0.00011095,2]
[352272015,1739023836263,-500.0,0.00011095,2]
[352272017,1739023836272,-500.0,0.00011095,2]
[352272019,1739023836281,-778.8,0.00011095,2]
[352272021,1739023836290,-500.0,0.00011095,2]
[352272023,1739023836300,-500.0,0.00011095,2]
[352272025,1739023836309,-510.74,0.00011095,2]
[352272027,1739023836318,-500.0,0.00011095,2]
[352272029,1739023836326,-500.0,0.00011095,2]
[352272031,1739023836336,-500.0,0.00011095,2]
[352272033,1739023836345,-500.0,0.00011095,2]
[352272034,1739023836353,-500.0,0.00011095,2]
[352272036,1739023836362,-500.0,0.00011095,2]
[352272038,1739023836371,-500.0,0.00011095,2]
[352272040,1739023836380,-500.0,0.00011095,2]
[352272042,1739023836390,-489.70406996,0.00011095,2]
[352272044,1739023836399,-688.0,0.00011095,2]
[352272046,1739023836408,-500.0,0.00011095,2]
[352272048,1739023836417,-216.87386038,0.00011095,2]
[352272050,1739023836426,-500.0,0.00011095,2]
[352272052,1739023836437,-500.0,0.00011095,2]
[352272054,1739023836446,-500.0,0.00011095,2]
[352272057,1739023836455,-500.0,0.00011095,2]
[352272059,1739023836464,-500.0,0.00011095,2]
[352272060,1739023836474,-1019.36,0.00011095,2]
[352272062,1739023836483,-500.0,0.00011095,2]
[352272064,1739023836492,-500.0,0.00011095,2]
[352272067,1739023836502,-500.0,0.00011095,2]
[352272069,1739023836512,-500.0,0.00011095,2]
[352272070,1739023836521,-1229.89,0.00011095,2]
[352272072,1739023836530,-1305.79,0.00011095,2]
[352272074,1739023836540,-500.0,0.00011095,2]
[352272076,1739023836549,-500.0,0.00011095,2]
[352272078,1739023836558,-500.0,0.00011095,2]
[352272080,1739023836567,-500.0,0.00011095,2]
[352272082,1739023836577,-786.92,0.00011095,2]
[352272084,1739023836586,-662.75,0.00011095,2]
[352272086,1739023836595,-500.0,0.00011095,2]
[352272088,1739023836605,-500.0,0.00011095,2]
[352272090,1739023836614,-500.0,0.00011095,2]
[352272092,1739023836623,-544.2,0.00011095,2]
[352272094,1739023836632,-500.0,0.00011095,2]
[352272096,1739023836642,-605.05,0.00011095,2]
[352272098,1739023836652,-500.0,0.00011095,2]
[352272100,1739023836660,-500.0,0.00011095,2]
[352272102,1739023836670,-500.0,0.00011095,2]
[352272104,1739023836679,-500.0,0.00011095,2]
[352272106,1739023836688,-500.0,0.00011095,2]
[352272108,1739023836697,-500.0,0.00011095,2]
[352272110,1739023836706,-500.0,0.00011095,2]
[352272112,1739023836715,-954.26,0.00011095,2]
[352272114,1739023836725,-500.0,0.00011095,2]
[352272116,1739023836734,-500.0,0.00011095,2]
[352272118,1739023836743,-1370.55,0.00011095,2]
[352272120,1739023836752,-279.00637962,0.00011095,2]
[352272122,1739023836761,-1219.79,0.00011095,2]
[352272124,1739023836771,-500.0,0.00011095,2]
[352272126,1739023836780,-500.0,0.00011095,2]
[352272128,1739023836790,-500.0,0.00011095,2]
[352272130,1739023836800,-500.0,0.00011095,2]
[352272133,1739023836809,-500.0,0.00011095,2]
[352272134,1739023836818,-652.03,0.00011095,2]
[352272136,1739023836828,-903.68,0.00011095,2]
[352272139,1739023836838,-500.0,0.00011095,2]
[352272140,1739023836848,-605.42,0.00011095,2]
[352272142,1739023836858,-500.0,0.00011095,2]
[352272144,1739023836868,-547.26479702,0.00011095,2]
[352272147,1739023836877,-599.52,0.00011095,2]
[352272148,1739023836887,-500.0,0.00011095,2]
[352272151,1739023836900,-500.0,0.00011095,2]
[352272153,1739023836911,-1124.23,0.00011095,2]
[352272155,1739023836920,-500.0,0.00011095,2]
[352272157,1739023836929,-500.0,0.00011095,2]
[352272159,1739023836938,-500.0,0.00011095,2]
[352272161,1739023836948,-500.0,0.00011095,2]
[352272163,1739023836958,-500.0,0.00011095,2]
[352272165,1739023836967,-766.56,0.00011095,2]
[352272167,1739023836977,-700.17,0.00011095,2]
[352272169,1739023836986,-500.0,0.00011095,2]
[352272171,1739023836996,-500.0,0.00011095,2]
[352272172,1739023837006,-500.0,0.00011095,2]
[352272175,1739023837017,-733.1,0.00011095,2]
[352272177,1739023837026,-500.0,0.00011095,2]
[352272179,1739023837036,-500.0,0.00011095,2]
[352272180,1739023837045,-500.0,0.00011095,2]
[352272182,1739023837056,-500.0,0.00011095,2]
[352272184,1739023837066,-1739.71,0.00011095,2]
[352272186,1739023837075,-500.0,0.00011095,2]
[352272188,1739023837084,-500.0,0.00011095,2]
[352272190,1739023837095,-500.0,0.00011095,2]
[352272192,1739023837105,-3208.72,0.00011095,2]
[352272195,1739023837114,-16188.59,0.00011095,2]
[352272196,1739023837123,-600.27658501,0.00011095,2]
[352272199,1739023837133,-1490.91,0.00011095,2]
[352272200,1739023837144,-1174.19,0.00011095,2]
[352272202,1739023837153,-1625.89,0.00011095,2]
[352272204,1739023837162,-500.0,0.00011095,2]
[352272206,1739023837172,-500.0,0.00011095,2]
[352272209,1739023837182,-500.0,0.00011095,2]
[352272211,1739023837192,-1482.63,0.00011095,2]
[352272213,1739023837201,-500.0,0.00011095,2]
[352272215,1739023837210,-1047.27,0.00011095,2]
[352272217,1739023837220,-500.0,0.00011095,2]
[352272219,1739023837229,-500.0,0.00011095,2]
[352272221,1739023837238,-3147.44,0.00011095,2]
[352272223,1739023837248,-976.87,0.00011095,2]
[352272224,1739023837257,-500.0,0.00011095,2]
[352272226,1739023837267,-500.0,0.00011095,2]
[352272229,1739023837276,-4615.46,0.00011095,2]
[352272231,1739023837285,-500.0,0.00011095,2]
[352272233,1739023837295,-500.0,0.00011095,2]
[352272235,1739023837304,-500.0,0.00011095,2]
[352272237,1739023837313,-574.03,0.00011095,2]
[352272239,1739023837323,-500.0,0.00011095,2]
[352272241,1739023837332,-500.0,0.00011095,2]
[352272243,1739023837342,-1280.51,0.00011095,2]
[352272245,1739023837352,-500.0,0.00011095,2]
[352272247,1739023837361,-500.0,0.00011095,2]
[352272249,1739023837370,-500.0,0.00011095,2]
[352272251,1739023837380,-500.0,0.00011095,2]
[352272253,1739023837391,-1464.14,0.00011095,2]
[352272255,1739023837400,-500.0,0.00011095,2]
[352272257,1739023837409,-537.33,0.00011095,2]
[352272259,1739023837419,-610.07,0.00011095,2]
[352272261,1739023837432,-5430.26,0.00011095,2]
[352272263,1739023837447,-46373.76,0.00011095,2]
[352272265,1739023837457,-4363.49,0.00011095,2]
[352272267,1739023837466,-15922.79,0.00011095,2]
[352272269,1739023837476,-500.0,0.00011095,2]
[352272271,1739023837485,-2135.78,0.00011095,2]
[352272273,1739023837496,-500.0,0.00011095,2]
[352272275,1739023837505,-1962.13,0.00011095,2]
[352272277,1739023837515,-500.0,0.00011095,2]
[352272279,1739023837525,-1504.34,0.00011095,2]
[352272280,1739023837534,-623.76,0.00011095,2]
[352272281,1739023837543,-500.0,0.00011095,2]
[352272282,1739023837552,-502.05271851,0.00011095,2]
[352272283,1739023837562,-1055.43,0.00011095,2]
[352272284,1739023837570,-1702.95,0.00011095,2]
[352272285,1739023837579,-500.0,0.00011095,2]
[352272287,1739023837589,-500.0,0.00011095,2]
[352272289,1739023837599,-500.0,0.00011095,2]
[352272291,1739023837608,-527.87,0.00011095,2]
[352272294,1739023837618,-500.0,0.00011095,2]
[352272295,1739023837627,-776.18,0.00011095,2]
[352272298,1739023837637,-527.87,0.00011095,2]
[352272299,1739023837647,-500.0,0.00011095,2]
[352272301,1739023837656,-500.0,0.00011095,2]
[352272303,1739023837665,-500.0,0.00011095,2]
[352272305,1739023837675,-500.0,0.00011095,2]
[352272307,1739023837684,-638.39880981,0.00011095,2]
[352272309,1739023837693,-500.0,0.00011095,2]
[352272311,1739023837703,-371.96574739,0.00011095,2]
[352272313,1739023837712,-1803.96,0.00011095,2]
[352272315,1739023837722,-500.0,0.00011095,2]
[352272317,1739023837732,-1327.61,0.00011095,2]
[352272320,1739023837740,-500.0,0.00011095,2]
[352272321,1739023837749,-500.0,0.00011095,2]
[352272323,1739023837760,-500.0,0.00011095,2]
[352272325,1739023837770,-500.0,0.00011095,2]
[352272328,1739023837779,-500.0,0.00011095,2]
[352272330,1739023837789,-500.0,0.00011095,2]
[352272331,1739023837798,-1765.06,0.00011095,2]
[352272333,1739023837807,-500.0,0.00011095,2]
[352272335,1739023837816,-634.75,0.00011095,2]
[352272338,1739023837827,-500.0,0.00011095,2]
[352272339,1739023837836,-500.0,0.00011095,2]
[352272341,1739023837845,-500.0,0.00011095,2]
[352272344,1739023837856,-500.0,0.00011095,2]
[352272345,1739023837865,-500.0,0.00011095,2]
[352272347,1739023837875,-501.5379233,0.00011095,2]
[352272350,1739023837884,-500.0,0.00011095,2]
[352272352,1739023837896,-500.0,0.00011095,2]
[352272354,1739023837906,-500.0,0.00011095,2]
[352272356,1739023837915,-8699.61,0.00011095,2]
[352272358,1739023837925,-500.0,0.00011095,2]
[352272360,1739023837935,-500.0,0.00011095,2]
[352272362,1739023837945,-500.0,0.00011095,2]
[352272364,1739023837954,-351.58757905,0.00011095,2]
[352272366,1739023837964,-823.64387606,0.00011095,2]
[352272370,1739023837987,-160.89612394,0.00011095,2]
[352272372,1739023837996,-2139.74172122,0.00011095,2]
[352272473,1739023838952,-500.0,0.00010958,2]
[352272475,1739023838962,-500.0,0.00010958,2]
[352272477,1739023838972,-500.0,0.00010958,2]
[352272479,1739023838981,-1364.16827878,0.00011095,2]
[352272481,1739023838991,-500.0,0.00011095,2]
[352272483,1739023839000,-1832.65,0.00011095,2]
[352272485,1739023839010,-604.21647467,0.00011095,2]
[352272487,1739023839024,-500.0,0.00011095,2]
[352272489,1739023839034,-3451.25,0.00011095,2]
[352272490,1739023839043,-500.0,0.00011095,2]
[352272491,1739023839053,-500.0,0.00011095,2]
[352272492,1739023839063,-4186.32,0.00011095,2]
[352272493,1739023839072,-1409.96,0.00011095,2]
[352272494,1739023839082,-500.0,0.00011095,2]
[352272495,1739023839092,-1444.4,0.00011095,2]
[352272496,1739023839102,-768.81,0.00011095,2]
[352272497,1739023839111,-500.0,0.00011095,2]
[352272498,1739023839120,-500.0,0.00011095,2]
[352272499,1739023839130,-518.24860747,0.00011095,2]
[352272500,1739023839139,-500.0,0.00011095,2]
[352272501,1739023839149,-784.31,0.00011095,2]
[352272502,1739023839159,-399.05238333,0.00011095,2]
[352272503,1739023839169,-872.97,0.00011095,2]
[352272504,1739023839178,-1610.78,0.00011095,2]
[352272505,1739023839187,-500.0,0.00011095,2]
[352272506,1739023839197,-500.0,0.00011095,2]
[352272507,1739023839207,-500.0,0.00011095,2]
[352272508,1739023839216,-500.0,0.00011095,2]
[352272509,1739023839226,-1214.04,0.00011095,2]
[352272511,1739023839235,-500.0,0.00011095,2]
[352272512,1739023839244,-500.0,0.00011095,2]
[352272513,1739023839253,-500.0,0.00011095,2]
[352272514,1739023839263,-222.94555897,0.00011095,2]
[352272515,1739023839271,-500.0,0.00011095,2]
[352272516,1739023839281,-500.0,0.00011095,2]
[352272517,1739023839290,-629.89,0.00011095,2]
[352272518,1739023839299,-641.27,0.00011095,2]
[352272520,1739023839308,-500.0,0.00011095,2]
[352272521,1739023839317,-500.0,0.00011095,2]
[352272522,1739023839327,-500.0,0.00011095,2]
[352272523,1739023839336,-1058.58,0.00011095,2]
[352272524,1739023839346,-500.0,0.00011095,2]
[352272526,1739023839355,-500.0,0.00011095,2]
[352272528,1739023839364,-500.0,0.00011095,2]
[352272529,1739023839373,-154.594,0.0001119,2]
[352272530,1739023839382,-151.0,0.000112,2]
[352272531,1739023839391,-155.1013707,0.000112,2]
[352272532,1739023839401,-153.0,0.000112,2]
[352272534,1739023839411,-215.7975175,0.000112,2]
[352272536,1739023839419,-153.0,0.000112,2]
[352272538,1739023839430,-354.7727591,0.000112,2]
[352272540,1739023839439,-154.5736464,0.000112,2]
[352272543,1739023839448,-153.0,0.000112,2]
[352272545,1739023839457,-215.7975175,0.000112,2]
[352272547,1739023839467,-153.0,0.000112,2]
[352272549,1739023839475,-154.5736464,0.000112,2]
[352272551,1739023839484,-153.0,0.000112,2]
[352272553,1739023839493,-306.0,0.000112,2]
[352272555,1739023839503,-306.0,0.000112,2]
[352272558,1739023839514,-431.595035,0.000112,2]
[352272559,1739023839529,-389.1487272,0.000112,2]
[352272561,1739023839538,-364.7595022,0.000112,2]
[352272563,1739023839549,-215.7975175,0.000112,2]
[352272565,1739023839560,-154.5736464,0.000112,2]
[352272567,1739023839573,-153.0,0.000112,2]
[352272569,1739023839583,-151.0,0.00011232,2]
[352272571,1739023839592,-278.99472816,0.00011232,2]
[352272573,1739023839601,-185.95499664,0.00011232,2]
[352272575,1739023839611,-525.72,0.00011232,2]
[352272577,1739023839619,-500.0,0.00011232,2]